bitfinex/quotes_SOLUSD_20230903
["timestamp","ask_amount","ask_price","bid_price","bid_amount"]
[1693767112743,104.0835,19.456,19.443,55.0]
[1693767112951,104.0835,19.456,19.444,4.88284987]
[1693767113247,53.38907406,19.46,19.444,4.88284987]
[1693767113446,20.0,19.459,19.445,55.0]
[1693767113643,20.0,19.459,19.446,4.88284987]
[1693767113848,20.0,19.459,19.447,55.0]
[1693767114043,20.0,19.459,19.448,4.88284987]
[1693767114638,28.016,19.459,19.448,4.88284987]
[1693767115233,8.015,19.462,19.448,4.88284987]
[1693767115442,37.69,19.47,19.45,37.69]
[1693767115640,20.0,19.468,19.451,55.0]
[1693767115941,20.0,19.468,19.452,4.88284987]
[1693767116251,8.013,19.467,19.452,4.88284987]
[1693767116444,8.014,19.465,19.452,4.88284987]
[1693767124460,55.0,19.464,19.451,4.88284987]
[1693767124648,8.015,19.463,19.445,24.88284987]
[1693767124848,55.0,19.462,19.445,24.88284987]
[1693767125047,63.015,19.462,19.445,24.88284987]
[1693767125853,63.015,19.462,19.446,55.0]
[1693767126054,63.015,19.462,19.447,24.88284987]
[1693767126254,63.015,19.462,19.448,55.0]
[1693767126561,63.015,19.462,19.449,4.88284987]
[1693767132771,55.0,19.462,19.449,4.88284987]
[1693767132948,8.015,19.464,19.449,4.88284987]
[1693767132949,55.0,19.463,19.449,4.88284987]
[1693767133767,37.69,19.46,19.449,4.88284987]
[1693767134067,33.92,19.457,19.445,4.88284987]
[1693767134268,110.607,19.456,19.445,4.88284987]
[1693767134475,8.018,19.455,19.441,4.88284987]
[1693767134968,8.018,19.455,19.442,55.0]
[1693767135267,8.018,19.455,19.441,4.88284987]
[1693767135969,110.607,19.456,19.441,4.88284987]
[1693767136551,110.607,19.456,19.442,55.0]
[1693767136756,110.607,19.456,19.443,4.88284987]
[1693767137351,55.0,19.455,19.441,4.88284987]
[1693767137558,63.018,19.455,19.441,4.88284987]
[1693767137758,8.018,19.455,19.442,55.0]
[1693767138057,8.018,19.455,19.443,4.88284987]
[1693767138972,118.625,19.456,19.443,4.88284987]
[1693767139468,110.607,19.456,19.444,55.0]
[1693767139655,110.607,19.456,19.445,4.88284987]
[1693767140874,118.625,19.456,19.445,4.88284987]
[1693767141556,110.607,19.456,19.445,4.88284987]
[1693767142871,118.625,19.456,19.445,4.88284987]
[1693767143167,37.69,19.46,19.445,4.88284987]
[1693767143370,8.014,19.464,19.446,55.0]
[1693767143558,8.014,19.464,19.447,24.88284987]
[1693767143759,8.014,19.464,19.448,55.0]
[1693767143974,8.014,19.464,19.449,4.88284987]
[1693767144174,8.014,19.464,19.45,55.0]
[1693767144477,105.8378,19.463,19.451,4.88284987]
[1693767144675,8.015,19.463,19.451,4.88284987]
[1693767144975,97.8228,19.462,19.451,4.88284987]
[1693767145370,105.8378,19.462,19.451,4.88284987]
[1693767148965,97.8228,19.462,19.451,4.88284987]
[1693767151182,105.8378,19.462,19.448,4.88284987]
[1693767151369,105.8378,19.462,19.449,55.0]
[1693767151678,105.8378,19.462,19.449,4.88284987]
[1693767152971,97.8228,19.462,19.449,4.88284987]
[1693767156681,97.8228,19.462,19.451,4.88284987]
[1693767157787,97.8228,19.462,19.449,4.88284987]
[1693767157990,97.8228,19.462,19.45,55.0]
[1693767158174,97.8228,19.462,19.451,4.88284987]
[1693767168404,15.4226221,19.469,19.452,55.0]
[1693767168618,20.0,19.468,19.453,4.88284987]
[1693767168900,20.0,19.468,19.455,4.88284987]
[1693767169086,20.0,19.468,19.457,4.88284987]
[1693767169289,20.0,19.468,19.455,4.88284987]
[1693767169480,20.0,19.468,19.457,4.88284987]
[1693767169980,20.0,19.468,19.456,55.0]
[1693767170588,28.013,19.468,19.456,55.0]
[1693767171694,28.013,19.468,19.45,37.69]
[1693767171894,28.013,19.468,19.451,59.77618499]
[1693767183602,28.013,19.468,19.451,4.77618499]
[1693767183796,55.0,19.467,19.451,4.77618499]
[1693767184094,8.015,19.463,19.451,4.77618499]
[1693767184906,8.015,19.463,19.452,55.0]
[1693767185108,8.015,19.463,19.453,4.77618499]
[1693767188804,8.014,19.464,19.453,4.77618499]
[1693767191501,8.014,19.465,19.453,4.77618499]
[1693767193502,62.12757201,19.468,19.453,4.77618499]
[1693767193503,62.12757201,19.468,19.454,55.0]
[1693767193805,62.12757201,19.468,19.455,4.77618499]
[1693767194620,8.013,19.467,19.455,4.77618499]
[1693767194802,20.0,19.466,19.455,4.77618499]
[1693767195003,8.014,19.465,19.455,4.77618499]
[1693767204125,7.014,19.465,19.455,4.77618499]
[1693767206224,7.014,19.465,19.451,4.88284987]
[1693767206519,7.014,19.465,19.448,4.88284987]
[1693767206821,7.014,19.465,19.446,4.88284987]
[1693767207023,7.014,19.465,19.446,24.88284987]
[1693767207408,7.014,19.465,19.448,4.88284987]
[1693767207614,7.014,19.465,19.449,55.0]
[1693767207814,7.014,19.465,19.45,4.88284987]
[1693767208118,7.014,19.465,19.452,4.88284987]
[1693767208924,55.0,19.464,19.447,24.88284987]
[1693767209120,8.015,19.463,19.448,55.0]
[1693767209316,55.0,19.464,19.449,4.88284987]
[1693767209515,63.014,19.464,19.45,55.0]
[1693767209821,63.014,19.464,19.451,4.88284987]
[1693767211422,8.014,19.464,19.451,4.88284987]
[1693767215616,8.014,19.464,19.451,4.88284987]
[1693767217118,20.0,19.466,19.451,4.88284987]
[1693767217427,8.014,19.466,19.452,55.0]
[1693767217624,8.014,19.466,19.453,4.88284987]
[1693767231139,20.0,19.468,19.453,4.88284987]
[1693767231331,28.013,19.468,19.455,4.88284987]
[1693767231538,28.013,19.468,19.453,4.88284987]
[1693767231732,28.013,19.468,19.455,4.88284987]
[1693767231933,28.013,19.468,19.456,55.0]
[1693767232128,28.013,19.468,19.45,37.69]
[1693767232328,28.013,19.468,19.451,4.56043598]
[1693767232534,28.013,19.468,19.451,59.56043598]
[1693767244948,53.901,19.468,19.451,59.56043598]
[1693767249556,55.0,19.467,19.451,59.56043598]
[1693767249851,8.015,19.463,19.451,59.56043598]
[1693767250648,8.015,19.463,19.448,4.88284987]
[1693767250841,8.017,19.458,19.442,4.88284987]
[1693767251241,37.69,19.46,19.442,4.88284987]
[1693767251640,45.706,19.46,19.442,59.88284987]
[1693767251846,45.706,19.46,19.444,4.88284987]
[1693767252055,45.706,19.46,19.445,55.0]
[1693767252244,45.706,19.46,19.446,24.88284987]
[1693767252546,45.706,19.46,19.448,4.88284987]
[1693767254852,20.0,19.459,19.448,4.88284987]
[1693767255052,20.0,19.459,19.441,4.88284987]
[1693767255053,8.018,19.456,19.441,4.88284987]
[1693767256140,8.018,19.456,19.442,55.0]
[1693767256446,8.018,19.456,19.443,4.88284987]
[1693767261350,33.922,19.456,19.441,4.88284987]
[1693767261547,33.922,19.456,19.442,55.0]
[1693767261747,33.922,19.456,19.443,4.88284987]
[1693767269361,37.69,19.45,19.441,4.88284987]
[1693767269664,37.69,19.45,19.435,24.88284987]
[1693767270570,55.0,19.455,19.436,55.0]
[1693767270771,55.0,19.456,19.437,4.88284987]
[1693767270970,55.0,19.456,19.438,55.0]
[1693767271174,55.0,19.456,19.439,4.88284987]
[1693767271467,8.018,19.454,19.44,55.0]
[1693767271668,63.018,19.456,19.441,4.88284987]
[1693767271965,63.018,19.456,19.443,4.88284987]
[1693767275160,63.018,19.456,19.438,4.88284987]
[1693767275364,63.018,19.456,19.44,4.88284987]
[1693767275566,63.018,19.456,19.442,4.88284987]
[1693767275767,63.018,19.456,19.44,4.88284987]
[1693767275967,63.018,19.456,19.442,4.88284987]
[1693767277479,8.018,19.456,19.442,4.88284987]
[1693767277780,15.10499227,19.457,19.443,55.0]
[1693767278077,20.0,19.456,19.444,4.88284987]
[1693767278379,28.018,19.456,19.444,4.88284987]
[1693767287477,20.0,19.456,19.444,4.88284987]
[1693767288378,20.0,19.456,19.445,55.0]
[1693767288583,20.0,19.456,19.446,4.88284987]
[1693767288780,20.0,19.456,19.448,4.88284987]
[1693767289085,28.017,19.458,19.446,4.88284987]
[1693767289270,28.017,19.458,19.447,55.0]
[1693767289472,28.017,19.458,19.448,4.88284987]
[1693767297386,28.017,19.458,19.442,4.88284987]
[1693767297586,28.017,19.458,19.441,4.88284987]
[1693767298498,28.017,19.458,19.442,55.0]
[1693767298697,28.017,19.458,19.443,4.88284987]
[1693767298895,28.017,19.458,19.444,55.0]
[1693767299084,28.017,19.458,19.445,4.88284987]
[1693767304897,8.017,19.458,19.445,4.88284987]
[1693767305397,20.0,19.457,19.445,4.88284987]
[1693767311404,28.017,19.457,19.445,4.88284987]
[1693767319611,28.017,19.457,19.441,4.88284987]
[1693767319909,28.017,19.457,19.443,4.88284987]
[1693767320300,28.017,19.457,19.44,4.88284987]
[1693767320301,8.019,19.453,19.44,4.88284987]
[1693767321996,8.019,19.453,19.441,55.0]
[1693767322208,8.019,19.453,19.442,4.88284987]
[1693767322910,8.018,19.454,19.442,4.88284987]
[1693767324604,8.018,19.454,19.44,4.88284987]
[1693767325711,91.1735,19.453,19.44,4.88284987]
[1693767325900,8.019,19.452,19.44,4.88284987]
[1693767326712,8.019,19.452,19.437,4.88284987]
[1693767326915,8.019,19.452,19.438,55.0]
[1693767327102,8.019,19.452,19.439,4.88284987]
[1693767327318,99.1925,19.453,19.44,55.0]
[1693767327601,99.1925,19.453,19.441,4.88284987]
[1693767331703,91.1735,19.453,19.441,4.88284987]
[1693767331919,91.1735,19.453,19.442,55.0]
[1693767332110,91.1735,19.453,19.443,4.88284987]
[1693767332310,20.0,19.457,19.443,4.88284987]
[1693767332511,8.018,19.455,19.443,4.88284987]
[1693767336620,95.9506,19.456,19.443,4.88284987]
[1693767336818,95.9506,19.456,19.444,55.0]
[1693767337017,95.9506,19.456,19.445,4.88284987]
[1693767338524,28.017,19.457,19.445,4.88284987]
[1693767338919,20.0,19.457,19.445,4.88284987]
[1693767339619,28.017,19.457,19.445,4.88284987]
[1693767359659,20.0,19.457,19.445,4.88284987]
[1693767359852,20.0,19.457,19.446,55.0]
[1693767360032,20.0,19.458,19.447,4.88284987]
[1693767360637,28.017,19.458,19.447,4.88284987]
[1693767361449,20.0,19.458,19.447,4.88284987]
[1693767366654,28.017,19.458,19.447,4.88284987]
[1693767374065,28.017,19.458,19.444,4.88284987]
[1693767374563,28.017,19.458,19.441,4.88284987]
[1693767375352,28.017,19.458,19.443,4.88284987]
[1693767375557,28.017,19.458,19.445,4.88284987]
[1693767375860,28.017,19.458,19.443,4.88284987]
[1693767376064,28.017,19.458,19.444,55.0]
[1693767376267,28.017,19.458,19.445,4.88284987]
[1693767376961,53.918,19.458,19.445,4.88284987]
[1693767377289,53.918,19.458,19.441,4.88284987]
[1693767377570,28.017,19.458,19.442,55.0]
[1693767377757,28.017,19.458,19.443,4.88284987]
[1693767383474,55.0,19.457,19.441,4.88284987]
[1693767383775,8.019,19.453,19.44,4.88284987]
[1693767383962,8.019,19.453,19.438,4.88284987]
[1693767384972,8.019,19.453,19.439,55.0]
[1693767385274,8.019,19.453,19.44,4.88284987]
[1693767390871,7.519,19.453,19.44,4.88284987]
[1693767396180,8.018,19.455,19.44,4.88284987]
[1693767398378,28.018,19.456,19.441,55.0]
[1693767398579,20.0,19.456,19.442,4.88284987]
[1693767398769,20.0,19.457,19.443,55.0]
[1693767398963,20.0,19.457,19.444,4.88284987]
[1693767399586,28.017,19.457,19.444,4.88284987]
[1693767401383,28.017,19.457,19.441,4.88284987]
[1693767401574,28.017,19.457,19.442,55.0]
[1693767401779,28.017,19.457,19.443,4.88284987]
[1693767407193,27.517,19.457,19.443,4.88284987]
[1693767418317,55.0,19.456,19.438,4.88284987]
[1693767418506,8.019,19.454,19.438,4.88284987]
[1693767418907,95.7337,19.453,19.438,4.88284987]
[1693767419299,103.7527,19.453,19.438,4.88284987]
[1693767419496,103.7527,19.453,19.439,55.0]
[1693767419725,103.7527,19.453,19.44,4.88284987]
[1693767425220,37.69,19.45,19.44,4.88284987]
[1693767425412,37.69,19.45,19.438,4.88284987]
[1693767425602,45.71,19.45,19.438,4.88284987]
[1693767425799,45.71,19.45,19.435,4.88284987]
[1693767426053,37.69,19.45,19.436,55.0]
[1693767426415,37.69,19.45,19.437,24.88284987]
[1693767429805,20.0,19.449,19.437,4.88284987]
[1693767430018,8.022,19.446,19.433,4.88284987]
[1693767430215,8.022,19.446,19.426,52.12468892]
[1693767430517,8.023,19.444,19.427,24.88284987]
[1693767431322,8.023,19.444,19.427,77.00753887]
[1693767432425,8.023,19.444,19.428,55.0]
[1693767432624,8.023,19.444,19.429,4.88284987]
[1693767432804,8.023,19.444,19.431,4.88284987]
[1693767433000,8.023,19.444,19.429,4.88284987]
[1693767433213,8.023,19.444,19.431,4.88284987]
[1693767433420,8.023,19.444,19.429,4.88284987]
[1693767433722,8.023,19.444,19.431,4.88284987]
[1693767434116,8.023,19.444,19.429,4.88284987]
[1693767434333,8.023,19.444,19.43,55.0]
[1693767434607,8.023,19.444,19.431,4.88284987]
[1693767435426,8.022,19.446,19.431,4.88284987]
[1693767444324,8.021,19.448,19.431,4.88284987]
[1693767444522,20.0,19.447,19.432,55.0]
[1693767444725,20.0,19.447,19.433,4.88284987]
[1693767444926,20.0,19.447,19.434,55.0]
[1693767445226,20.0,19.448,19.435,4.88284987]
[1693767445424,28.021,19.448,19.435,4.88284987]
[1693767451428,28.021,19.448,19.436,55.0]
[1693767451727,28.021,19.448,19.437,4.88284987]
[1693767453120,20.0,19.448,19.437,4.88284987]
[1693767455035,28.021,19.448,19.437,4.88284987]
[1693767461134,129.8473,19.45,19.439,4.88284987]
[1693767461435,92.1573,19.45,19.44,55.0]
[1693767461621,92.1573,19.45,19.441,4.88284987]
[1693767472737,129.8473,19.45,19.437,24.88284987]
[1693767473442,129.8473,19.45,19.434,57.006911]
[1693767473443,129.8473,19.45,19.436,4.88284987]
[1693767474031,129.8473,19.45,19.438,4.88284987]
[1693767479538,129.8473,19.45,19.436,4.88284987]
[1693767480749,137.8673,19.45,19.436,4.88284987]
[1693767487741,129.8473,19.45,19.436,4.88284987]
[1693767516975,137.8673,19.45,19.436,4.88284987]
[1693767521284,129.8473,19.45,19.436,4.88284987]
[1693767523919,129.8473,19.45,19.436,24.88284987]
[1693767524386,129.8473,19.45,19.436,4.88284987]
[1693767524582,129.8473,19.45,19.434,4.88284987]
[1693767524780,129.8473,19.45,19.435,55.0]
[1693767524973,129.8473,19.45,19.436,24.88284987]
[1693767527081,129.8473,19.45,19.436,4.88284987]
[1693767527281,20.0,19.449,19.433,4.88284987]
[1693767527483,20.0,19.449,19.434,55.0]
[1693767527682,20.0,19.449,19.435,4.88284987]
[1693767529483,55.0,19.448,19.435,4.88284987]
[1693767529690,28.022,19.447,19.432,4.88284987]
[1693767529881,20.0,19.447,19.43,4.88284987]
[1693767530876,20.0,19.447,19.431,55.0]
[1693767531077,28.021,19.447,19.432,4.88284987]
[1693767550311,55.0,19.446,19.432,4.88284987]
[1693767550604,8.022,19.445,19.432,4.88284987]
[1693767553107,55.0,19.446,19.432,4.88284987]
[1693767553315,20.0,19.447,19.433,55.0]
[1693767553514,20.0,19.448,19.434,4.88284987]
[1693767554007,28.021,19.448,19.434,4.88284987]
[1693767554830,137.8673,19.45,19.434,4.88284987]
[1693767555028,137.8673,19.45,19.435,55.0]
[1693767555225,129.8473,19.45,19.436,24.88284987]
[1693767555950,137.8673,19.45,19.436,24.88284987]
[1693767559034,129.8473,19.45,19.436,24.88284987]
[1693767580448,129.8473,19.45,19.437,55.0]
[1693767580647,129.8473,19.45,19.438,4.88284987]
[1693767585956,75.0,19.449,19.437,4.88284987]
[1693767586159,75.0,19.449,19.418,401.4]
[1693767586160,8.021,19.448,19.435,4.88284987]
[1693767586354,20.0,19.447,19.431,4.88284987]
[1693767586560,28.021,19.447,19.431,4.88284987]
[1693767587255,28.021,19.447,19.432,55.0]
[1693767587560,55.0,19.446,19.433,4.88284987]
[1693767587761,55.0,19.446,19.431,4.88284987]
[1693767588258,55.0,19.446,19.43,4.88284987]
[1693767588459,8.022,19.445,19.43,4.88284987]
[1693767588762,8.022,19.445,19.432,4.88284987]
[1693767592462,63.022,19.446,19.432,4.88284987]
[1693767593152,63.022,19.446,19.43,4.88284987]
[1693767600872,37.69,19.44,19.43,4.88284987]
[1693767601670,92.9756,19.444,19.43,4.88284987]
[1693767602281,92.9756,19.444,19.432,4.88284987]
[1693767604675,92.9756,19.444,19.43,4.88284987]
[1693767605185,55.0,19.443,19.43,4.88284987]
[1693767605377,55.0,19.443,19.426,24.88284987]
[1693767605577,55.0,19.443,19.427,55.0]
[1693767605773,55.0,19.443,19.428,4.88284987]
[1693767606578,37.69,19.44,19.428,4.88284987]
[1693767606879,37.69,19.44,19.427,4.88284987]
[1693767608082,55.0,19.439,19.427,4.88284987]
[1693767608472,95.2343,19.438,19.427,4.88284987]
[1693767609987,95.2343,19.438,19.424,4.88284987]
[1693767610674,55.0,19.437,19.424,4.88284987]
[1693767625389,166.9661,19.436,19.422,4.88284987]
[1693767625587,166.9661,19.436,19.42,4.88284987]
[1693767625588,111.9661,19.436,19.42,4.88284987]
[1693767625800,55.0,19.435,19.42,4.88284987]
[1693767628096,37.69,19.43,19.42,4.88284987]
[1693767629003,37.69,19.43,19.42,4.38284987]
[1693767630696,92.5563,19.429,19.42,4.38284987]
[1693767637607,92.5563,19.429,19.42,107.21753879]
[1693767638891,92.5563,19.429,19.42,59.38284987]
[1693767644407,92.5563,19.429,19.42,4.38284987]
[1693767646299,92.5563,19.429,19.42,42.07284987]
[1693767646505,20.0,19.436,19.422,4.38284987]
[1693767646698,37.69,19.44,19.422,4.38284987]
[1693767646699,92.7989,19.435,19.422,4.38284987]
[1693767647812,92.7989,19.435,19.422,24.38284987]
[1693767648018,92.7989,19.435,19.424,4.38284987]
[1693767648200,92.7989,19.435,19.424,24.38284987]
[1693767648520,92.7989,19.435,19.426,4.38284987]
[1693767648698,92.7989,19.435,19.426,24.38284987]
[1693767648907,37.69,19.44,19.427,55.0]
[1693767649096,37.69,19.44,19.428,4.38284987]
[1693767652004,92.7989,19.442,19.43,37.69]
[1693767652318,92.7989,19.442,19.431,59.38284987]
[1693767653107,8.023,19.444,19.431,59.38284987]
[1693767653310,25.916,19.447,19.431,59.38284987]
[1693767653311,107.7838,19.443,19.431,59.38284987]
[1693767653511,8.023,19.443,19.431,59.38284987]
[1693767654120,37.69,19.44,19.431,4.38284987]
[1693767654318,37.69,19.44,19.428,4.38284987]
[1693767654505,37.69,19.44,19.422,24.38284987]
[1693767654818,37.69,19.44,19.426,37.69]
[1693767655029,37.69,19.44,19.427,79.38284987]
[1693767657125,99.7608,19.441,19.427,79.38284987]
[1693767657325,59.79084111,19.448,19.43,37.69]
[1693767657535,91.2497,19.446,19.431,59.38284987]
[1693767657912,53.32800205,19.45,19.431,59.38284987]
[1693767658216,91.2497,19.445,19.431,59.38284987]
[1693767658623,8.021,19.447,19.431,59.38284987]
[1693767658914,0.56176049,19.445,19.431,59.38284987]
[1693767659834,20.0,19.446,19.431,59.38284987]
[1693767660517,20.0,19.446,19.431,4.38284987]
[1693767660518,55.0,19.445,19.431,4.38284987]
[1693767660818,0.56176049,19.444,19.428,4.38284987]
[1693767661023,8.58476049,19.444,19.428,59.38284987]
[1693767661321,55.0,19.443,19.428,59.38284987]
[1693767663130,8.023,19.444,19.428,59.38284987]
[1693767663323,0.50431274,19.443,19.428,59.38284987]
[1693767663524,8.023,19.443,19.428,59.38284987]
[1693767664332,8.58476049,19.445,19.428,59.38284987]
[1693767664530,0.56176049,19.443,19.428,59.38284987]
[1693767670334,0.56176049,19.444,19.428,59.38284987]
[1693767671156,8.022,19.445,19.428,59.38284987]
[1693767671332,0.56176049,19.444,19.428,59.38284987]
[1693767671533,8.022,19.445,19.428,59.38284987]
[1693767672228,0.50141666,19.444,19.428,59.38284987]
[1693767672942,8.022,19.445,19.428,59.38284987]
[1693767673131,0.49319358,19.444,19.428,59.38284987]
[1693767673335,28.022,19.446,19.428,59.38284987]
[1693767673650,55.56176049,19.445,19.428,59.38284987]
[1693767674238,149.04846049,19.445,19.428,59.38284987]
[1693767674846,157.07046049,19.445,19.428,59.38284987]
[1693767675741,102.07046049,19.445,19.43,37.69]
[1693767675959,94.04846049,19.445,19.431,59.38284987]
[1693767676132,93.4867,19.445,19.431,59.38284987]
[1693767676444,20.0,19.446,19.431,59.38284987]
[1693767676634,0.56176049,19.445,19.431,59.38284987]
[1693767677549,0.56176049,19.446,19.431,59.38284987]
[1693767678632,0.56176049,19.449,19.433,4.38284987]
[1693767678834,37.69,19.45,19.433,107.21770927]
[1693767679224,37.69,19.45,19.435,4.38284987]
[1693767679428,37.69,19.45,19.435,59.38284987]
[1693767679945,37.69,19.45,19.437,4.38284987]
[1693767680130,37.69,19.45,19.437,59.38284987]
[1693767680938,45.71,19.45,19.437,59.38284987]
[1693767681139,37.69,19.45,19.437,59.38284987]
[1693767681636,8.019,19.454,19.437,59.38284987]
[1693767681835,0.56176049,19.453,19.437,59.38284987]
[1693767682246,8.019,19.452,19.437,59.38284987]
[1693767682845,8.019,19.454,19.437,59.38284987]
[1693767683045,0.56176049,19.453,19.437,59.38284987]
[1693767683245,8.58076049,19.453,19.437,59.38284987]
[1693767692250,0.56176049,19.453,19.437,59.38284987]
[1693767694546,55.56176049,19.454,19.437,59.38284987]
[1693767697761,63.58076049,19.454,19.437,59.38284987]
[1693767698576,37.69,19.45,19.437,59.38284987]
[1693767702149,37.69,19.45,19.437,4.38284987]
[1693767702351,20.0,19.449,19.437,4.38284987]
[1693767702554,0.56176049,19.448,19.432,4.38284987]
[1693767702758,8.58276049,19.448,19.431,4.38284987]
[1693767702954,75.0,19.447,19.431,4.38284987]
[1693767703263,0.56176049,19.446,19.431,4.38284987]
[1693767703562,8.022,19.445,19.431,4.38284987]
[1693767703858,0.56176049,19.446,19.431,59.38284987]
[1693767704063,8.022,19.445,19.431,4.38284987]
[1693767704761,0.52999054,19.444,19.429,4.38284987]
[1693767705762,0.52999054,19.444,19.43,37.69]
[1693767705953,8.022,19.445,19.431,59.38284987]
[1693767706859,8.022,19.445,19.431,4.38284987]
[1693767707055,8.023,19.442,19.429,4.38284987]
[1693767707258,8.023,19.442,19.429,59.38284987]
[1693767709269,37.69,19.44,19.429,4.38284987]
[1693767709459,45.715,19.44,19.429,4.38284987]
[1693767710462,37.69,19.44,19.429,4.38284987]
[1693767718667,37.19,19.44,19.429,4.38284987]
[1693767730374,37.19,19.44,19.429,3.88284987]
[1693767734379,55.0,19.439,19.429,3.88284987]
[1693767742788,63.025,19.439,19.429,3.88284987]
[1693767743085,63.025,19.439,19.424,23.88284987]
[1693767743285,63.025,19.439,19.424,70.95352593]
[1693767743579,55.0,19.439,19.425,47.07067606]
[1693767743887,55.0,19.439,19.427,3.88284987]
[1693767746082,37.19,19.44,19.427,3.88284987]
[1693767746394,37.19,19.44,19.428,47.07067606]
[1693767746578,37.19,19.44,19.429,3.88284987]
[1693767751478,37.19,19.44,19.427,3.88284987]
[1693767751676,37.19,19.44,19.424,3.88284987]
[1693767751980,37.19,19.44,19.424,58.88284987]
[1693767752177,37.19,19.44,19.425,20.0]
[1693767752376,37.19,19.44,19.426,3.88284987]
[1693767752588,37.19,19.44,19.426,58.88284987]
[1693767752892,37.19,19.44,19.427,20.0]
[1693767753092,37.19,19.44,19.428,3.88284987]
[1693767768899,55.0,19.439,19.428,3.88284987]
[1693767769100,8.025,19.438,19.425,3.88284987]
[1693767769507,8.025,19.438,19.424,3.88284987]
[1693767770405,8.025,19.438,19.424,58.88284987]
[1693767770598,8.025,19.438,19.425,20.0]
[1693767770798,8.025,19.438,19.426,3.88284987]
[1693767772695,55.0,19.437,19.426,3.88284987]
[1693767772897,63.026,19.437,19.424,3.88284987]
[1693767773097,97.8972,19.436,19.424,3.88284987]
[1693767773296,55.0,19.435,19.424,3.88284987]
[1693767774609,37.69,19.43,19.421,3.88284987]
[1693767774907,37.69,19.43,19.419,3.88284987]
[1693767776702,37.69,19.43,19.415,23.88284987]
[1693767777011,37.69,19.43,19.417,3.88284987]
[1693767777412,37.69,19.43,19.417,23.88284987]
[1693767778719,97.8972,19.434,19.417,23.88284987]
[1693767778918,55.0,19.433,19.417,23.88284987]
[1693767787029,55.0,19.433,19.418,55.0]
[1693767787230,55.0,19.433,19.419,3.88284987]
[1693767797827,97.8972,19.434,19.419,3.88284987]
[1693767799016,97.8972,19.434,19.42,37.69]
[1693767799217,97.8972,19.434,19.421,58.88284987]
[1693767800029,8.025,19.438,19.421,58.88284987]
[1693767800230,20.90762076,19.437,19.421,58.88284987]
[1693767800723,55.0,19.436,19.421,58.88284987]
[1693767800920,1.06176049,19.435,19.421,58.88284987]
[1693767808536,1.06176049,19.436,19.421,58.88284987]
[1693767811228,1.06176049,19.436,19.421,79.48028487]
[1693767812335,20.0,19.436,19.421,79.48028487]
[1693767813040,1.06176049,19.438,19.421,79.48028487]
[1693767813750,8.026,19.436,19.421,79.48028487]
[1693767818129,8.025,19.437,19.421,79.48028487]
[1693767818332,28.026,19.436,19.421,79.48028487]
[1693767820131,28.026,19.436,19.421,24.48028487]
[1693767820333,0.52771603,19.435,19.421,3.88284987]
[1693767820641,8.55371603,19.435,19.421,3.88284987]
[1693767821440,8.026,19.435,19.421,58.88284987]
[1693767845258,0.73833639,19.434,19.421,3.88284987]
[1693767845571,8.027,19.433,19.421,3.88284987]
[1693767845764,0.6104128,19.432,19.418,3.88284987]
[1693767845956,0.6104128,19.432,19.417,3.88284987]
[1693767846152,8.027,19.433,19.417,3.88284987]
[1693767846862,8.027,19.433,19.417,58.88284987]
[1693767847459,63.027,19.434,19.417,58.88284987]
[1693767847858,63.027,19.434,19.42,37.69]
[1693767848058,63.027,19.434,19.421,3.88284987]
[1693767857570,63.027,19.434,19.418,3.88284987]
[1693767857772,63.027,19.434,19.418,58.88284987]
[1693767858174,63.027,19.434,19.418,3.88284987]